{"text_format":"1","workbook":"xlsx","n_sheets":7,"sheets":["C1","C2","B1","B1Z","B2","A1","A2"],"not_rendered":{"charts":0,"images":0,"macros":1,"external_links":0,"defined_names":1,"comments":0,"pivot_tables":0},"unopened":[],"bounds":{"document_bytes":16777216,"sheet_cells":100000,"rows_first":2000,"rows_last":500,"rows_between":2000,"halvings":0,"cell_chars":16384,"cell_head_chars":4096},"cells_cut":0,"cells_raw":0,"read":"whole","date_system":"1900"}

{"sheet":"C1","index":0,"n_rows":34,"n_cols":24,"rows_kept":34,"cut":false,"hidden":false,"merged":[[1,2,1,3],[2,1,2,4]]}
[null,null,"Počet postupujících",24,{"$f":"LARGE(E4:E34,D1)","v":3}]
[null,null,"Seřazení od nejlepšího: CTRL+S",null,"Ʃ best 3","Mem.Diviše","MC Pce","Slaný","N.M.","Šumperk","Mělník","DK Vánoční","Chomutov"]
[null,"C1"]
[null,1,"Chmelová Denisa","KKPCE",{"$f":"SUM(LARGE(F4:X4,1)+LARGE(F4:X4,2)+LARGE(F4:X4,3))","v":48},13,7,null,19,null,null,16,null,null,null,null,null,null,null,null,null,0,0,0]
[null,2,"Kornatovská Lada","BKCB",36,10,null,14,null,null,12,null,null,null,null,null,null,null,null,null,null,0,0,0]
[null,3,"Burdová Elen","KKPCE",36,16,4,null,16,null,null,null,null,null,null,null,null,null,null,null,null,0,0,0]
[null,4,"Kristová Lucie","KKPDY",34,8,null,null,13,null,null,13,null,null,null,null,null,null,null,null,null,0,0,0]
[null,5,"Čermáková Adriana","KKDKNL",28,5,null,null,11,9,null,8,null,null,null,null,null,null,null,null,null,0,0,0]
[null,6,"Kopecká Sophie","TJKRNV",26,6,null,11,null,null,9,null,null,null,null,null,null,null,null,null,null,0,0,0]
[null,7,"Švorcová Eliška Klára","KRHRO",23,4,null,null,8,null,null,11,null,null,null,null,null,null,null,null,null,0,0,0]
[null,8,"Čeňková Ema","KKDKNL",23,7,null,null,9,3,null,7,null,null,null,null,null,null,null,null,null,0,0,0]
[null,9,"Goldšmídová Kateřina","SBMEL",20,null,null,5,null,null,4,null,11,null,null,null,null,null,null,null,null,0,0,0]
[null,10,"Březinová Julie","KKCHOM",19,null,null,8,null,null,3,null,8,null,null,null,null,null,null,null,null,0,0,0]
[null,11,"Smolíková Nela","KRHRO",13,null,null,null,7,null,null,6,null,null,null,null,null,null,null,null,null,0,0,0]
[null,11,"Řehořová Alexandra","KKDKNL",13,3,null,null,6,null,null,4,null,null,null,null,null,null,null,null,null,0,0,0]
[null,11,"Nezbedová Nela","SBMEL",13,null,null,4,null,null,6,null,3,null,null,null,null,null,null,null,null,0,0,0]
[null,14,"Nováková Nela","KRHRO",10,null,null,null,10,null,null,null,null,null,null,null,null,null,null,null,null,0,0,0]
[null,15,"Sholzová Evelína","KRHRO",9,null,null,null,4,null,null,5,null,null,null,null,null,null,null,null,null,0,0,0]
[null,16,"Křížová Štěpánka","KKDKNL",8,2,null,null,3,null,null,3,null,null,null,null,null,null,null,null,null,0,0,0]
[null,17,"Kročilová Šárka","BKUB",6,null,null,null,null,6,null,null,null,null,null,null,null,null,null,null,null,0,0,0]
[null,17,"Hrubá Julie","KKSLA",6,null,null,6,null,null,null,null,null,null,null,null,null,null,null,null,null,0,0,0]
[null,19,"Žohová Zuzana","KKCHOM",5,null,null,null,null,null,null,null,5,null,null,null,null,null,null,null,null,0,0,0]
[null,19,"Neugebauerová Klára","SPTRU",5,null,null,null,5,null,null,null,null,null,null,null,null,null,null,null,null,0,0,0]
[null,19,"Čížková Marika","SBMEL",5,null,null,3,null,null,2,null,null,null,null,null,null,null,null,null,null,0,0,0]
[null,22,"Šimonová Nikola","KKDKNL",4,1,null,null,1,null,null,2,null,null,null,null,null,null,null,null,null,0,0,0]
[null,23,"Sholz Jaroslav","KRHRO",3,null,null,null,2,null,null,1,null,null,null,null,null,null,null,null,null,0,0,0]
[null,23,"Faiglová Nikol","KKCHOM",3,null,null,null,null,null,1,null,2,null,null,null,null,null,null,null,null,0,0,0]
[null,25,"Šedivá Tereza","KKSLA",2,null,null,2,null,null,null,null,null,null,null,null,null,null,null,null,null,0,0,0]
[null,26,"Trčálková Mariana","BKUB",1,null,null,null,null,1,null,null,null,null,null,null,null,null,null,null,null,0,0,0]
[null,27,"Syrovátková Anna","HCKKLA",1,null,null,null,null,null,null,null,1,null,null,null,null,null,null,null,null,0,0,0]
[null,28,"Chudobová Veronika","BKMB",1,null,null,1,null,null,null,null,null,null,null,null,null,null,null,null,null,0,0,0]
[null,null,null,null,0,null,null,null,null,null,null,null,null,null,null,null,null,null,null,null,null,0,0,0]
[null,null,null,null,0,null,null,null,null,null,null,null,null,null,null,null,null,null,null,null,null,0,0,0]
[null,null,null,null,0,null,null,null,null,null,null,null,null,null,null,null,null,null,null,null,null,0,0,0]

{"sheet":"C2","index":1,"n_rows":86,"n_cols":25,"rows_kept":86,"cut":false,"hidden":false,"merged":[[1,3,1,4],[2,2,2,5]]}
[null,null,null,"Počet postupujících",24,{"$f":"LARGE(F4:F86,E1)","v":31}]
[null,null,null,"Seřazení od nejlepšího: CTRL+S",null,"Ʃ best 3","Mem.Diviše","MC Pce","VC Pod","Slaný","N.M.","Šumperk","Mělník","DK Vánoční","Chomutov"]
[null,null,"C2"]
[null,null,1,"Lisina Sofia","KKPDY",{"$f":"SUM(LARGE(G4:Y4,1)+LARGE(G4:Y4,2)+LARGE(G4:Y4,3))","v":72},28,null,null,null,24,null,null,20,null,null,null,null,null,null,null,null,0,0,0]
[null,null,2,"Liemannová Dora","TJKRNV",68,null,null,22,20,null,null,null,null,26,null,null,null,null,null,null,null,0,0,0]
[null,null,3,"Klepetková Sára","KKPCE",66,20,16,null,null,21,null,null,25,null,null,null,null,null,null,null,null,0,0,0]
[null,null,4,"Vorlíčková Tereza","BKHK",63,22,11,null,null,19,18,null,22,null,null,null,null,null,null,null,null,0,0,0]
[null,null,5,"Shtets Svitlana","KKPCE",60,19,13,null,null,27,null,null,14,null,null,null,null,null,null,null,null,0,0,0]
[null,null,6,"Dovolilová Alžběta","BKVLIB",59,25,7,null,17,16,null,null,17,null,null,null,null,null,null,null,null,0,0,0]
[null,null,7,"Kotová  Viktorie","KKPCE",55,17,10,null,null,null,null,null,28,null,null,null,null,null,null,null,null,0,0,0]
[null,null,8,"Curran Kassia","KKSTPHA",51,15,null,20,null,null,null,null,16,null,null,null,null,null,null,null,null,0,0,0]
[null,null,9,"Nováková Tereza","KRCR",50,14,19,null,null,17,null,null,null,null,null,null,null,null,null,null,null,0,0,0]
[null,null,10,"Kňourková Anežka","TJKRNV",49,18,null,19,12,null,null,null,null,null,null,null,null,null,null,null,null,0,0,0]
[null,null,11,"Vrátná Eliška","BKVLIB",48,10,9,null,11,18,null,null,19,null,null,null,null,null,null,null,null,0,0,0]
[null,null,12,"Chmelařová Sofie","KRML",45,null,null,17,12,null,null,null,null,16,null,null,null,null,null,null,null,0,0,0]
[null,null,13,"Hes Gabriela","SKKOST",43,null,null,null,20,null,null,null,null,23,null,null,null,null,null,null,null,0,0,0]
[null,null,14,"Peroutková Kristýna","PODKR",42,null,null,25,17,null,null,null,null,null,null,null,null,null,null,null,null,0,0,0]
[null,null,15,"Vápeníková Sofie","KKČT",39,11,8,null,null,13,15,null,null,null,null,null,null,null,null,null,null,0,0,0]
[null,null,15,"Mouleová Eliška","KKPLZ",39,null,null,null,7,null,null,19,null,13,null,null,null,null,null,null,null,0,0,0]
[null,null,15,"Jedličková Amy","KKPCE",39,9,4,null,null,15,null,null,15,null,null,null,null,null,null,null,null,0,0,0]
[null,null,18,"Škorpilová Anežka","BKVLIB",36,7,6,null,8,10,null,null,18,null,null,null,null,null,null,null,null,0,0,0]
[null,null,19,"Rout Sofie Isabel","TJKRNV",35,null,null,13,null,null,null,14,null,8,null,null,null,null,null,null,null,0,0,0]
[null,null,19,"Juříčková Eliška","TJKRNV",35,null,null,14,9,null,null,12,null,null,null,null,null,null,null,null,null,0,0,0]
[null,null,21,"Šauerová Vendula","BKHK",34,13,5,null,null,null,null,null,16,null,null,null,null,null,null,null,null,0,0,0]
[null,null,21,"Jirků Sofie","BKMB",34,null,null,15,null,null,null,9,10,null,null,null,null,null,null,null,null,0,0,0]
[null,null,23,"Vodvářková Nora","KKPDY",32,12,null,null,null,7,null,null,13,null,null,null,null,null,null,null,null,0,0,0]
[null,null,24,"Mašková Tereza","KKROK",31,null,null,null,9,null,null,22,null,null,null,null,null,null,null,null,null,0,0,0]
[null,null,24,"Bromová Jana","SKKPLZ",31,null,null,null,14,null,null,null,null,17,null,null,null,null,null,null,null,0,0,0]
[null,null,26,"Filipová Viktorie","SPAZEB",30,null,null,null,10,null,null,null,null,20,null,null,null,null,null,null,null,0,0,0]
[null,null,27,"Romancovová Klára","KKSTPHA",29,null,null,18,11,null,null,null,null,null,null,null,null,null,null,null,null,0,0,0]
[null,null,28,"Karbanová Kateřina","KKDKNL",29,8,1,null,null,8,10,null,11,null,null,null,null,null,null,null,null,0,0,0]
[null,null,29,"Valdhansová Sofie","KKPLZ",28,null,null,null,14,null,null,null,null,14,null,null,null,null,null,null,null,0,0,0]
[null,null,30,"Chudá Kristýna","KKČT",28,16,null,null,null,12,null,null,null,null,null,null,null,null,null,null,null,0,0,0]
[null,null,31,"Horáková Viktorie","HCKKLA",28,null,null,16,null,null,null,null,null,12,null,null,null,null,null,null,null,0,0,0]
[null,null,32,"Císařová Adéla",null,28,null,null,28,null,null,null,null,null,null,null,null,null,null,null,null,null,0,0,0]
[null,null,33,"Kohmová veronika","TJKRNV",{"$f":"SUM(LARGE(G36:Y36,1)+LARGE(G36:Y36,2)+LARGE(G36:Y36,3))","v":27},4,null,12,4,null,null,11,null,null,null,null,null,null,null,null,null,0,0,0]
[null,null,34,"Gálová Linda","KKCHOM",27,null,null,5,7,null,null,null,null,15,null,null,null,null,null,null,null,0,0,0]
[null,null,35,"Svobodová Hana","SKKPLZ",26,null,null,null,6,null,null,10,null,10,null,null,null,null,null,null,null,0,0,0]
[null,null,36,"Hudok Jiří","KKDKNL",24,6,null,null,null,11,null,null,7,null,null,null,null,null,null,null,null,0,0,0]
[null,null,37,"Webersinková Tereza","KKSTPHA",23,null,null,10,null,null,null,13,null,null,null,null,null,null,null,null,null,0,0,0]
[null,null,38,"Salvová Natálie","SKCHEB",21,null,null,9,5,null,null,null,null,7,null,null,null,null,null,null,null,0,0,0]
[null,null,39,"Poulová Simona","KKČT",21,2,3,null,null,9,9,null,null,null,null,null,null,null,null,null,null,0,0,0]
[null,null,40,"Benková Aneta","SKCHEB",21,null,null,null,10,null,null,null,null,11,null,null,null,null,null,null,null,0,0,0]
[null,null,41,"Musilová Nikol","KKPCE",19,5,2,null,null,5,null,null,9,null,null,null,null,null,null,null,null,0,0,0]
[null,null,42,"Blailová Bára","KKCHOM",19,null,null,11,8,null,null,null,null,null,null,null,null,null,null,null,null,0,0,0]
[null,null,43,"Rožboudová Tereza","BKCB",18,null,null,null,null,null,null,null,null,18,null,null,null,null,null,null,null,0,0,0]
[null,null,44,"Červená Alena","KKCHOM",15,null,null,6,null,null,null,null,null,9,null,null,null,null,null,null,null,0,0,0]
[null,null,45,"Matoušková Anna","KRHRO",14,null,null,null,null,14,null,null,null,null,null,null,null,null,null,null,null,0,0,0]
[null,null,46,"Janáčová Karin","KKPDY",13,3,null,null,null,4,null,null,6,null,null,null,null,null,null,null,null,0,0,0]
[null,null,47,"Kytýrová Naděžda Ariel","SPTRU",12,null,null,null,null,null,null,null,12,null,null,null,null,null,null,null,null,0,0,0]
[null,null,48,"Hrašáková Helena","BKUB",12,null,null,null,null,null,12,null,null,null,null,null,null,null,null,null,null,0,0,0]
[null,null,49,"Burýšková Viktorie","SBMEL",12,null,null,null,2,null,null,7,null,3,null,null,null,null,null,null,null,0,0,0]
[null,null,50,"Šímová Sofie","HCKKLA",11,null,null,7,null,null,null,null,null,4,null,null,null,null,null,null,null,0,0,0]
[null,null,51,"Procházková Viktorie","BKMB",10,null,null,null,3,null,7,null,null,null,null,null,null,null,null,null,null,0,0,0]
[null,null,52,"Pancová Linda","HCLIT",10,null,null,null,null,null,null,5,null,5,null,null,null,null,null,null,null,0,0,0]
[null,null,53,"Frumarová Ema","BKMB",9,null,null,3,null,null,null,6,null,null,null,null,null,null,null,null,null,0,0,0]
[null,null,54,"Wilson Klára","TJKNACH",8,null,null,null,null,null,null,null,8,null,null,null,null,null,null,null,null,0,0,0]
[null,null,55,"Mottlová Diana",null,8,null,null,8,null,null,null,null,null,null,null,null,null,null,null,null,null,0,0,0]
[null,null,56,"Mikulcová Vanessa","BKUB",8,null,null,null,null,null,8,null,null,null,null,null,null,null,null,null,null,0,0,0]
[null,null,57,"Krejčí Linda","KKSOB",8,null,null,null,null,null,null,8,null,null,null,null,null,null,null,null,null,0,0,0]
[null,null,58,"Drobná Aneta","KKDKNL",7,1,null,null,null,3,null,null,3,null,null,null,null,null,null,null,null,0,0,0]
[null,null,59,"Skálová Natálie","TJSNM",6,null,null,null,null,6,null,null,null,null,null,null,null,null,null,null,null,0,0,0]
[null,null,60,"Samková Viktorie","KKVYS",6,null,null,null,6,null,null,null,null,null,null,null,null,null,null,null,null,0,0,0]
[null,null,61,"Mynářová Adéla","BKUB",6,null,null,null,null,null,6,null,null,null,null,null,null,null,null,null,null,0,0,0]
[null,null,62,"Debonis Naila","BKRIC",6,null,null,null,null,null,null,null,null,6,null,null,null,null,null,null,null,0,0,0]
[null,null,63,"Vohradská Vivien","KKSLA",5,null,null,2,1,null,null,2,null,null,null,null,null,null,null,null,null,0,0,0]
[null,null,64,"Sholzová Markéta","KRHRO",5,null,null,null,null,1,null,null,4,null,null,null,null,null,null,null,null,0,0,0]
[null,null,65,"Martásková Daniela","HCLIT",{"$f":"SUM(LARGE(G68:Y68,1)+LARGE(G68:Y68,2)+LARGE(G68:Y68,3))","v":5},null,null,null,null,null,null,3,null,2,null,null,null,null,null,null,null,0,0,0]
[null,null,66,"Havlíčková Barbora","BKHK",5,null,null,null,null,null,null,null,5,null,null,null,null,null,null,null,null,0,0,0]
[null,null,67,"Dvořáková Christina Anna","KRPRO",5,null,null,null,null,null,5,null,null,null,null,null,null,null,null,null,null,0,0,0]
[null,null,68,"Dunajová Markéta","KKSLA",5,null,null,1,3,null,null,1,null,1,null,null,null,null,null,null,null,0,0,0]
[null,null,69,"Čejka Daniel","HCSTRA",5,null,null,null,5,null,null,null,null,null,null,null,null,null,null,null,null,0,0,0]
[null,null,70,"Mullender Sofia","KKSOB",4,null,null,null,null,null,null,4,null,null,null,null,null,null,null,null,null,0,0,0]
[null,null,71,"Kotajná Dora",null,4,null,null,4,null,null,null,null,null,null,null,null,null,null,null,null,null,0,0,0]
[null,null,72,"Konvalina Maxim","KRPRO",4,null,null,null,null,null,3,null,1,null,null,null,null,null,null,null,null,0,0,0]
[null,null,73,"Ježková Marie","SPTRU",4,null,null,null,null,2,null,null,2,null,null,null,null,null,null,null,null,0,0,0]
[null,null,74,"Baronová Nela","KRNJ",4,null,null,null,null,null,4,null,null,null,null,null,null,null,null,null,null,0,0,0]
[null,null,75,"Albrechtová Michaela","HCSTRA",4,null,null,null,4,null,null,null,null,null,null,null,null,null,null,null,null,0,0,0]
[null,null,76,"Juráková Viktorie","KRNJ",2,null,null,null,null,null,2,null,null,null,null,null,null,null,null,null,null,0,0,0]
[null,null,77,"Antonova Magdalena","SKKPLZ",2,null,null,null,2,null,null,null,null,null,null,null,null,null,null,null,null,0,0,0]
[null,null,78,"Hrubá Nikol","KKSLA",1,null,null,null,1,null,null,null,null,null,null,null,null,null,null,null,null,0,0,0]
[null,null,79,"Fromlová Elena","KRPRO",1,null,null,null,null,null,1,null,null,null,null,null,null,null,null,null,null,0,0,0]
[null,null,null,null,null,0,null,null,null,null,null,null,null,null,null,null,null,null,null,null,null,null,0,0,0]
[null,null,null,null,null,0,null,null,null,null,null,null,null,null,null,null,null,null,null,null,null,null,0,0,0]
[null,null,null,null,null,0,null,null,null,null,null,null,null,null,null,null,null,null,null,null,null,null,0,0,0]
[null,null,null,null,null,0,null,null,null,null,null,null,null,null,null,null,null,null,null,null,null,null,0,0,0]

{"sheet":"B1","index":2,"n_rows":81,"n_cols":24,"rows_kept":81,"cut":false,"hidden":false,"merged":[[2,1,2,4]]}
[null,null,"Počet postupujících",24,{"$f":"LARGE(E4:E81,D1)","v":26}]
[null,null,null," ","Ʃ best 3","Mem.Diviše","VC Pod","Slaný","N.M.","Šumperk","Mělník","DK Vánoční","Chomutov"]
[null,"B1"]
[null,1,"Hlavín Amélie","KRMIL",{"$f":"SUM(LARGE(F4:X4,1)+LARGE(F4:X4,2)+LARGE(F4:X4,3))","v":72},null,20,26,null,null,10,null,26,null,null,null,null,null,null,null,null,0,0,0]
[null,2,"Rousková Alexandra","KKSTPHA",62,27,17,null,null,null,18,null,1,null,null,null,null,null,null,null,null,0,0,0]
[null,3,"Hudoková Kateřina","KKDKNL",60,19,null,null,19,22,null,10,null,null,null,null,null,null,null,null,null,0,0,0]
[null,4,"Rašková Tereza","KKČT",55,21,null,null,9,19,null,15,null,null,null,null,null,null,null,null,null,0,0,0]
[null,5,"Kohutková Tereza","PODKR",53,null,12,12,null,null,18,null,23,null,null,null,null,null,null,null,null,0,0,0]
[null,6,"Petráňová Monika","KKČT",50,18,null,null,18,14,null,null,null,null,null,null,null,null,null,null,null,0,0,0]
[null,7,"Mikšovská Kristýna","KRMIL",48,null,null,23,null,null,8,null,17,null,null,null,null,null,null,null,null,0,0,0]
[null,8,"Broulíková Veronika","KKČT",46,17,null,null,13,16,null,null,null,null,null,null,null,null,null,null,null,0,0,0]
[null,9,"Trčová Lenka","PODKR",43,null,14,29,null,null,null,null,null,null,null,null,null,null,null,null,null,0,0,0]
[null,9,"Rácová Lenka","HCSLOU",43,null,11,19,null,null,5,null,13,null,null,null,null,null,null,null,null,0,0,0]
[null,9,"Henklová Sofie","KKSLA",43,null,17,11,null,null,15,null,null,null,null,null,null,null,null,null,null,0,0,0]
[null,12,"Šimůnková Dorota","KKPDY",42,15,null,null,9,null,null,18,null,null,null,null,null,null,null,null,null,0,0,0]
[null,12,"Říhová Lucie","KKČT",42,24,null,null,10,8,null,null,null,null,null,null,null,null,null,null,null,0,0,0]
[null,12,"Ředinová Nela","PODKR",42,null,14,null,null,null,10,null,18,null,null,null,null,null,null,null,null,0,0,0]
[null,15,"Janová Marie","BKCB",41,null,null,21,null,null,null,null,20,null,null,null,null,null,null,null,null,0,0,0]
[null,16,"Petráňová Andrea","KKČT",37,16,null,null,16,5,null,null,null,null,null,null,null,null,null,null,null,0,0,0]
[null,17,"Řehounková Beáta","TJKRNV",35,null,8,null,null,null,12,null,15,null,null,null,null,null,null,null,null,0,0,0]
[null,18,"Curran Romy","KKSTPHA",32,14,6,null,null,null,12,null,null,null,null,null,null,null,null,null,null,0,0,0]
[null,19,"Švehlová Viktorie","KRML",30,null,10,20,null,null,null,null,null,null,null,null,null,null,null,null,null,0,0,0]
[null,20,"Svatková Nikola","HCLED",29,null,9,null,11,null,9,null,null,null,null,null,null,null,null,null,null,0,0,0]
[null,21,"Zelenková Tereza","SPAZEB",28,null,null,14,null,null,null,null,14,null,null,null,null,null,null,null,null,0,0,0]
[null,22,"Čunátová Kateřina","KRMIL",28,null,4,8,null,null,3,null,16,null,null,null,null,null,null,null,null,0,0,0]
[null,23,"Malevičová Tereza","KKSTPHA",27,8,7,null,null,null,null,null,12,null,null,null,null,null,null,null,null,0,0,0]
[null,24,"Tichá Lucie","TJKRNV",26,3,null,16,null,null,7,null,null,null,null,null,null,null,null,null,null,0,0,0]
[null,25,"Pichlíková Zora","KKROK",25,null,null,17,null,null,8,null,null,null,null,null,null,null,null,null,null,0,0,0]
[null,26,"Křížová Karolína","KKDKNL",25,6,null,null,10,9,null,6,null,null,null,null,null,null,null,null,null,0,0,0]
[null,27,"Rejtharová Nela","TJSNM",24,null,null,null,12,null,null,12,null,null,null,null,null,null,null,null,null,0,0,0]
[null,28,"Jotovová Dominika","KKSTPHA",24,13,11,null,null,null,null,null,null,null,null,null,null,null,null,null,null,0,0,0]
[null,29,"Hamplová Dorota","KKDKNL",24,11,null,null,6,null,null,7,null,null,null,null,null,null,null,null,null,0,0,0]
[null,30,"Vachtová Amálie","KKPDY",23,12,null,null,3,null,null,8,null,null,null,null,null,null,null,null,null,0,0,0]
[null,31,"Trojáková Pavlína","KKSLA",22,null,null,18,null,null,4,null,null,null,null,null,null,null,null,null,null,0,0,0]
[null,32,"Chmelařová Sára","KRML",20,null,5,15,null,null,null,null,null,null,null,null,null,null,null,null,null,0,0,0]
[null,33,"Broulíková Nela","KKČT",{"$f":"SUM(LARGE(F36:X36,1)+LARGE(F36:X36,2)+LARGE(F36:X36,3))","v":20},9,null,null,5,6,null,null,null,null,null,null,null,null,null,null,null,0,0,0]
[null,34,"Kazatelová Nicoletta","KKSLA",19,null,3,7,null,null,null,null,9,null,null,null,null,null,null,null,null,0,0,0]
[null,35,"Dufková Julie","SPTRU",19,null,null,null,7,12,null,null,null,null,null,null,null,null,null,null,null,0,0,0]
[null,36,"Disha Enni","TJKRNV",19,null,null,13,null,null,6,null,null,null,null,null,null,null,null,null,null,0,0,0]
[null,37,"Čížková Kristýna","HCSLOU",19,null,8,1,null,null,6,null,5,null,null,null,null,null,null,null,null,0,0,0]
[null,38,"Panošková Kristina","KRMIL",18,null,null,3,null,null,5,null,10,null,null,null,null,null,null,null,null,0,0,0]
[null,39,"Kopicová Sofie","HCLED",18,null,6,null,5,null,7,null,null,null,null,null,null,null,null,null,null,0,0,0]
[null,40,"Herynková Nela","KKSOB",18,null,null,9,null,null,9,null,null,null,null,null,null,null,null,null,null,0,0,0]
[null,41,"Zápotocká Johana","TJKRNV",17,null,2,null,null,null,4,null,11,null,null,null,null,null,null,null,null,0,0,0]
[null,42,"Šimková Mercedes","HCMDS",17,null,null,null,6,11,null,null,null,null,null,null,null,null,null,null,null,0,0,0]
[null,43,"Pilous David","KKSTPHA",17,10,7,null,null,null,null,null,null,null,null,null,null,null,null,null,null,0,0,0]
[null,44,"Koutníková Eliška","KRMIL",17,null,1,6,null,null,3,null,8,null,null,null,null,null,null,null,null,0,0,0]
[null,45,"Vokounová Kristýna","KKPDY",15,null,null,null,15,null,null,null,null,null,null,null,null,null,null,null,null,0,0,0]
[null,46,"Vodvářková Nela","KKPDY",15,7,null,null,3,null,null,5,null,null,null,null,null,null,null,null,null,0,0,0]
[null,47,"Šimonová Veronika","KKDKNL",15,4,null,null,2,null,null,9,null,null,null,null,null,null,null,null,null,0,0,0]
[null,48,"Chovančíková L.","KKROK",15,null,null,null,null,null,15,null,null,null,null,null,null,null,null,null,null,0,0,0]
[null,49,"Černá Marie","KRML",15,null,5,10,null,null,null,null,null,null,null,null,null,null,null,null,null,0,0,0]
[null,50,"Froňková Natálie","KKSLA",14,null,null,5,null,null,2,null,7,null,null,null,null,null,null,null,null,0,0,0]
[null,51,"Borecká Karolína","KKPDY",14,5,null,null,7,null,null,2,null,null,null,null,null,null,null,null,null,0,0,0]
[null,52,"Konečná Laura Viktorie","KKSLA",13,null,3,4,null,null,1,null,6,null,null,null,null,null,null,null,null,0,0,0]
[null,53,"Buráňová Lucie","BKUB",13,null,null,null,null,13,null,null,null,null,null,null,null,null,null,null,null,0,0,0]
[null,54,"Vovsová Tina","KKDKNL",11,2,null,null,8,null,null,1,null,null,null,null,null,null,null,null,null,0,0,0]
[null,55,"Vymazalová Kristýna","BKUB",10,null,null,null,null,10,null,null,null,null,null,null,null,null,null,null,null,0,0,0]
[null,56,"Johnston James",null,9,null,9,null,null,null,null,null,null,null,null,null,null,null,null,null,null,0,0,0]
[null,57,"Laštůvková Adleta","HCMDS",8,null,null,null,8,null,null,null,null,null,null,null,null,null,null,null,null,0,0,0]
[null,58,"Habartová Lucie","BKUB",7,null,null,null,null,7,null,null,null,null,null,null,null,null,null,null,null,0,0,0]
[null,59,"Gálová Pavlína","KKCHOM",7,null,2,2,null,null,null,null,3,null,null,null,null,null,null,null,null,0,0,0]
[null,60,"Hypšlerová Marie",null,5,null,4,null,null,null,1,null,null,null,null,null,null,null,null,null,null,0,0,0]
[null,61,"Neugebauerová Kristýna","SPTRU",4,null,null,null,4,null,null,null,null,null,null,null,null,null,null,null,null,0,0,0]
[null,62,"Letochová Viktorie","KRPRO",4,null,null,null,null,4,null,null,null,null,null,null,null,null,null,null,null,0,0,0]
[null,63,"Janatová Andrea","TJSNM",4,null,null,null,4,null,null,null,null,null,null,null,null,null,null,null,null,0,0,0]
[null,64,"Borusíková Michaela","BKCB",4,null,null,null,null,null,null,4,null,null,null,null,null,null,null,null,null,0,0,0]
[null,65,"Blehová Nikola","KKCHOM",{"$f":"SUM(LARGE(F68:X68,1)+LARGE(F68:X68,2)+LARGE(F68:X68,3))","v":4},null,null,null,null,null,null,null,4,null,null,null,null,null,null,null,null,0,0,0]
[null,66,"Andrlová Tereza","KKDKNL",4,1,null,null,null,null,null,3,null,null,null,null,null,null,null,null,null,0,0,0]
[null,67,"Červená Helena","KKCHOM",3,null,1,null,null,null,null,null,2,null,null,null,null,null,null,null,null,0,0,0]
[null,68,"Bečičková Radka","KRPRO",3,null,null,null,null,3,null,null,null,null,null,null,null,null,null,null,null,0,0,0]
[null,69,"Vaisová Alžběta","SPTRU",2,null,null,null,2,null,null,null,null,null,null,null,null,null,null,null,null,0,0,0]
[null,70,"Pekr Robin","KRPRO",2,null,null,null,null,2,null,null,null,null,null,null,null,null,null,null,null,0,0,0]
[null,71,"Nývltová Tereza","KKSOB",2,null,null,null,null,null,2,null,null,null,null,null,null,null,null,null,null,0,0,0]
[null,72,"Rousková Denisa","TJSNM",1,null,null,null,1,null,null,null,null,null,null,null,null,null,null,null,null,0,0,0]
[null,73,"Podsedníková Lea","TJSNM",1,null,null,null,1,null,null,null,null,null,null,null,null,null,null,null,null,0,0,0]
[null,74,"Hánová Alice","KRNJ",1,null,null,null,null,1,null,null,null,null,null,null,null,null,null,null,null,0,0,0]
[null,75,null,null,0,null,null,null,null,null,null,null,null,null,null,null,null,null,null,null,null,0,0,0]
[null,76,null,null,0,null,null,null,null,null,null,null,null,null,null,null,null,null,null,null,null,0,0,0]
[null,77,null,null,0,null,null,null,null,null,null,null,null,null,null,null,null,null,null,null,null,0,0,0]
[null,78,null,null,0,null,null,null,null,null,null,null,null,null,null,null,null,null,null,null,null,0,0,0]

{"sheet":"B1Z","index":3,"n_rows":31,"n_cols":24,"rows_kept":31,"cut":false,"hidden":false,"merged":[[2,1,2,4]]}
[null,null,"Počet postupujících",11,{"$f":"LARGE(E4:E31,D1)","v":1}]
[null,null,null,null,"Ʃ best 3","Mem.Diviše","DK Vánoční"]
[null,"B1 Začátečníci"]
[null,1,"Stets Yeva","KKDKNL",{"$f":"SUM(LARGE(F4:X4,1)+LARGE(F4:X4,2)+LARGE(F4:X4,3))","v":22},6,16,null,null,null,null,null,null,null,null,null,null,null,null,null,null,0,0,0]
[null,2,"Řehořová Magdaléna","KKDKNL",19,9,10,null,null,null,null,null,null,null,null,null,null,null,null,null,null,0,0,0]
[null,3,"Černický Matěj","TJKNACH",13,null,13,null,null,null,null,null,null,null,null,null,null,null,null,null,null,0,0,0]
[null,4,"Povejšilová Klára",null,11,3,8,null,null,null,null,null,null,null,null,null,null,null,null,null,null,0,0,0]
[null,5,"Dvořák Filip","SPTRU",7,null,7,null,null,null,null,null,null,null,null,null,null,null,null,null,null,0,0,0]
[null,6,"Voltr Max","TJKNACH",6,null,6,null,null,null,null,null,null,null,null,null,null,null,null,null,null,0,0,0]
[null,7,"Kubelková Marie","KKPDY",6,1,5,null,null,null,null,null,null,null,null,null,null,null,null,null,null,0,0,0]
[null,8,"Ježková Alena","SPTRU",4,null,4,null,null,null,null,null,null,null,null,null,null,null,null,null,null,0,0,0]
[null,9,"Mucudisová Eleni","SPTRU",3,null,3,null,null,null,null,null,null,null,null,null,null,null,null,null,null,0,0,0]
[null,10,"Schmiedová Erika","SPTRU",2,null,2,null,null,null,null,null,null,null,null,null,null,null,null,null,null,0,0,0]
[null,11,"Bugfifa Mariana","SPTRU",1,null,1,null,null,null,null,null,null,null,null,null,null,null,null,null,null,0,0,0]
[null,null,null,null,0,null,null,null,null,null,null,null,null,null,null,null,null,null,null,null,null,0,0,0]
[null,null,null,null,0,null,null,null,null,null,null,null,null,null,null,null,null,null,null,null,null,0,0,0]
[null,null,null,null,0,null,null,null,null,null,null,null,null,null,null,null,null,null,null,null,null,0,0,0]
[null,null,null,null,0,null,null,null,null,null,null,null,null,null,null,null,null,null,null,null,null,0,0,0]
[null,null,null,null,0,null,null,null,null,null,null,null,null,null,null,null,null,null,null,null,null,0,0,0]
[null,null,null,null,0,null,null,null,null,null,null,null,null,null,null,null,null,null,null,null,null,0,0,0]
[null,null,null,null,0,null,null,null,null,null,null,null,null,null,null,null,null,null,null,null,null,0,0,0]
[null,null,null,null,0,null,null,null,null,null,null,null,null,null,null,null,null,null,null,null,null,0,0,0]
[null,null,null,null,0,null,null,null,null,null,null,null,null,null,null,null,null,null,null,null,null,0,0,0]
[null,null,null,null,0,null,null,null,null,null,null,null,null,null,null,null,null,null,null,null,null,0,0,0]
[null,null,null,null,0,null,null,null,null,null,null,null,null,null,null,null,null,null,null,null,null,0,0,0]
[null,null,null,null,0,null,null,null,null,null,null,null,null,null,null,null,null,null,null,null,null,0,0,0]
[null,null,null,null,0,null,null,null,null,null,null,null,null,null,null,null,null,null,null,null,null,0,0,0]
[null,null,null,null,0,null,null,null,null,null,null,null,null,null,null,null,null,null,null,null,null,0,0,0]
[null,null,null,null,0,null,null,null,null,null,null,null,null,null,null,null,null,null,null,null,null,0,0,0]
[null,null,null,null,0,null,null,null,null,null,null,null,null,null,null,null,null,null,null,null,null,0,0,0]
[null,null,null,null,0,null,null,null,null,null,null,null,null,null,null,null,null,null,null,null,null,0,0,0]

{"sheet":"B2","index":4,"n_rows":37,"n_cols":24,"rows_kept":37,"cut":false,"hidden":false,"merged":[[2,1,2,4]]}
[null,null,"Počet postupujících",24,{"$f":"LARGE(E4:E37,D1)","v":0}]
[null,null,null,null,"Ʃ best 3","Mem.Diviše","Slaný","N.M.","Šumperk","Mělník","DK Vánoční"]
[null,"B2"]
[null,1,"Dymáková Elen","KRCR",{"$f":"SUM(LARGE(F4:X4,1)+LARGE(F4:X4,2)+LARGE(F4:X4,3))","v":25},12,null,13,null,null,null,null,null,null,null,null,null,null,null,null,null,0,0,0]
[null,2,"Drapáková Adriana","BKHK",20,4,null,7,null,null,9,null,null,null,null,null,null,null,null,null,null,0,0,0]
[null,3,"Vejsadová Anežka","KKSTPHA",18,9,null,null,null,9,null,null,null,null,null,null,null,null,null,null,null,0,0,0]
[null,4,"Straková Tereza","KKDKNL",17,3,null,2,8,null,6,null,null,null,null,null,null,null,null,null,null,0,0,0]
[null,5,"Palánková Dominka","KRPRO",16,null,null,null,16,null,null,null,null,null,null,null,null,null,null,null,null,0,0,0]
[null,5,"Kejzarová Barbora","KKDKNL",16,2,null,4,10,null,1,null,null,null,null,null,null,null,null,null,null,0,0,0]
[null,5,"Bělohradská Barbora ","HCLED",16,null,null,10,null,6,null,null,null,null,null,null,null,null,null,null,null,0,0,0]
[null,8,"Šejblová Hana","KKDKNL",15,1,null,5,7,null,3,null,null,null,null,null,null,null,null,null,null,0,0,0]
[null,9,"Fromlová Nikola","KRPRO",13,null,null,null,13,null,null,null,null,null,null,null,null,null,null,null,null,0,0,0]
[null,10,"Blailová Edita","KKCHOM",8,null,8,null,null,null,null,null,null,null,null,null,null,null,null,null,null,0,0,0]
[null,11,"Jotovová Leontýna","KKSTPHA",6,6,null,null,null,null,null,null,null,null,null,null,null,null,null,null,null,0,0,0]
[null,11,"Chmelová Michaela","KRNJ",6,null,null,null,6,null,null,null,null,null,null,null,null,null,null,null,null,0,0,0]
[null,13,"Šindlerová Anežka","KRPRO",5,null,null,null,5,null,null,null,null,null,null,null,null,null,null,null,null,0,0,0]
[null,13,"Marešová Anna Viktorie","KKCHOM",5,null,5,null,null,null,null,null,null,null,null,null,null,null,null,null,null,0,0,0]
[null,15,"Moserová Julie","KRPRO",4,null,null,null,4,null,null,null,null,null,null,null,null,null,null,null,null,0,0,0]
[null,15,"Brabencová Anna","HCLED",4,null,null,3,null,1,null,null,null,null,null,null,null,null,null,null,null,0,0,0]
[null,17,"Kodysová Markéta ","KKTEL",3,null,null,null,null,3,null,null,null,null,null,null,null,null,null,null,null,0,0,0]
[null,17,"Blažková Nella","KRPRO",3,null,null,null,3,null,null,null,null,null,null,null,null,null,null,null,null,0,0,0]
[null,19,"Doušová Klára","KKSLA",2,null,2,null,null,null,null,null,null,null,null,null,null,null,null,null,null,0,0,0]
[null,19,"Blažková Michaela","KRPRO",2,null,null,null,2,null,null,null,null,null,null,null,null,null,null,null,null,0,0,0]
[null,21,"Kroupová natálie","KRPRO",1,null,null,null,1,null,null,null,null,null,null,null,null,null,null,null,null,0,0,0]
[null,21,"Herko Sofie","HCLED",1,null,null,1,null,null,null,null,null,null,null,null,null,null,null,null,null,0,0,0]
[null,null,null,null,0,null,null,null,null,null,null,null,null,null,null,null,null,null,null,null,null,0,0,0]
[null,null,null,null,0,null,null,null,null,null,null,null,null,null,null,null,null,null,null,null,null,0,0,0]
[null,null,null,null,0,null,null,null,null,null,null,null,null,null,null,null,null,null,null,null,null,0,0,0]
[null,null,null,null,0,null,null,null,null,null,null,null,null,null,null,null,null,null,null,null,null,0,0,0]
[null,null,null,null,0,null,null,null,null,null,null,null,null,null,null,null,null,null,null,null,null,0,0,0]
[null,null,null,null,{"$f":"SUM(LARGE(F31:X31,1)+LARGE(F31:X31,2)+LARGE(F31:X31,3))","v":0},null,null,null,null,null,null,null,null,null,null,null,null,null,null,null,null,0,0,0]
[null,null,null,null,0,null,null,null,null,null,null,null,null,null,null,null,null,null,null,null,null,0,0,0]
[null,null,null,null,0,null,null,null,null,null,null,null,null,null,null,null,null,null,null,null,null,0,0,0]
[null,null,null,null,0,null,null,null,null,null,null,null,null,null,null,null,null,null,null,null,null,0,0,0]
[null,null,null,null,0,null,null,null,null,null,null,null,null,null,null,null,null,null,null,null,null,0,0,0]
[null,null,null,null,0,null,null,null,null,null,null,null,null,null,null,null,null,null,null,null,null,0,0,0]
[null,null,null,null,0,null,null,null,null,null,null,null,null,null,null,null,null,null,null,null,null,0,0,0]

{"sheet":"A1","index":5,"n_rows":48,"n_cols":24,"rows_kept":48,"cut":false,"hidden":false,"merged":[[2,1,2,4]]}
[null,null,"Počet postupujících",24,{"$f":"LARGE(E4:E48,D1)","v":9}]
[null,null,null,null,"Ʃ best 3","Mem.Diviše","VC Pod","NM 1","Šumperk","Mělník","DK Vánoční"]
[null,"A1"]
[null,1,"Kočnarová Eliška","BKHK",{"$f":"SUM(LARGE(F4:X4,1)+LARGE(F4:X4,2)+LARGE(F4:X4,3))","v":66},24,null,27,null,null,15,null,null,null,null,null,null,null,null,null,null,0,0,0]
[null,2,"Bobáková Natálie","KKSTPHA",50,27,12,null,null,11,null,null,null,null,null,null,null,null,null,null,null,0,0,0]
[null,3,"Macháčková Anna","KKČT",43,21,null,13,9,null,null,null,null,null,null,null,null,null,null,null,null,0,0,0]
[null,4,"Foffová Simona","KKČT",42,19,null,16,7,null,null,null,null,null,null,null,null,null,null,null,null,0,0,0]
[null,5,"Baťová Kateřina","KRCR",41,17,null,24,null,null,null,null,null,null,null,null,null,null,null,null,null,0,0,0]
[null,6,"Vacková Kateřina","KRHRO",40,14,null,12,14,null,9,null,null,null,null,null,null,null,null,null,null,0,0,0]
[null,7,"Vovsová Vanda","KKDKNL",37,13,null,17,null,null,7,null,null,null,null,null,null,null,null,null,null,0,0,0]
[null,8,"Trhlíková Natálie","KKPDY",34,15,null,19,null,null,null,null,null,null,null,null,null,null,null,null,null,0,0,0]
[null,9,"Součková Sabina","KKDKNL",32,4,null,14,6,null,12,null,null,null,null,null,null,null,null,null,null,0,0,0]
[null,9,"Křivská Tereza","KKPDY",32,11,null,21,null,null,null,null,null,null,null,null,null,null,null,null,null,0,0,0]
[null,11,"Smiovská Karolína","KKSTPHA",29,18,6,null,null,5,null,null,null,null,null,null,null,null,null,null,null,0,0,0]
[null,11,"Absolonová Vendula","KKCT",29,null,null,18,11,null,null,null,null,null,null,null,null,null,null,null,null,0,0,0]
[null,13,"Černická Anna","TJKNACH",26,12,null,8,null,null,6,null,null,null,null,null,null,null,null,null,null,0,0,0]
[null,14,"Dymáková Julie","KRCR",24,9,null,15,null,null,null,null,null,null,null,null,null,null,null,null,null,0,0,0]
[null,15,"Rubášová Adéla","KKPDY",23,16,null,7,null,null,null,null,null,null,null,null,null,null,null,null,null,0,0,0]
[null,15,"Romancovová Barbora","KKSTPHA",23,null,15,null,null,8,null,null,null,null,null,null,null,null,null,null,null,0,0,0]
[null,15,"Fialová Monika","KKPDY",23,7,null,11,null,null,5,null,null,null,null,null,null,null,null,null,null,0,0,0]
[null,18,"Havlíčková Marie","KKPDY",20,10,null,10,null,null,null,null,null,null,null,null,null,null,null,null,null,0,0,0]
[null,19,"Vykydalová Natálie","KBPRO",17,null,null,null,17,null,null,null,null,null,null,null,null,null,null,null,null,0,0,0]
[null,20,"Petrichsheva Apollinariya","KKPDY",16,6,null,6,null,null,4,null,null,null,null,null,null,null,null,null,null,0,0,0]
[null,21,"Absolonová Adéla","KKČT",13,5,null,null,8,null,null,null,null,null,null,null,null,null,null,null,null,0,0,0]
[null,22,"Krejcarová Iva","KKDKNL",11,1,null,4,5,null,2,null,null,null,null,null,null,null,null,null,null,0,0,0]
[null,23,"Příhodová Viktorie","KKDKNL",10,2,null,5,null,null,3,null,null,null,null,null,null,null,null,null,null,0,0,0]
[null,24,"Prošková Adéla",null,9,null,9,null,null,null,null,null,null,null,null,null,null,null,null,null,null,0,0,0]
[null,24,"Marková Tereza","TJSNM",9,null,null,9,null,null,null,null,null,null,null,null,null,null,null,null,null,0,0,0]
[null,26,"Bohutínská Jana","KKSTPHA",8,8,null,null,null,null,null,null,null,null,null,null,null,null,null,null,null,0,0,0]
[null,27,"Vaňková Anna",null,7,null,7,null,null,null,null,null,null,null,null,null,null,null,null,null,null,0,0,0]
[null,28,"Kortanová Eliška","KRMIL",7,null,4,null,null,3,null,null,null,null,null,null,null,null,null,null,null,0,0,0]
[null,29,"Zouzalová Kristýna","KKPDY",6,3,null,2,null,null,1,null,null,null,null,null,null,null,null,null,null,0,0,0]
[null,30,"Zajíčková Tereza",null,5,null,5,null,null,null,null,null,null,null,null,null,null,null,null,null,null,0,0,0]
[null,31,"Kovaříková Denisa","KBPRO",4,null,null,null,4,null,null,null,null,null,null,null,null,null,null,null,null,0,0,0]
[null,32,"Hrtoňová Klára Marie",null,3,null,3,null,null,null,null,null,null,null,null,null,null,null,null,null,null,0,0,0]
[null,33,"Halmová Thea","KRNJ",3,null,null,null,3,null,null,null,null,null,null,null,null,null,null,null,null,0,0,0]
[null,34,"Brožová Veronika","SPTRU",3,null,null,3,null,null,null,null,null,null,null,null,null,null,null,null,null,0,0,0]
[null,35,"Kodys David","KKTEL",2,null,null,null,null,2,null,null,null,null,null,null,null,null,null,null,null,0,0,0]
[null,36,"Janoušková Kateřina",null,2,null,2,null,null,null,null,null,null,null,null,null,null,null,null,null,null,0,0,0]
[null,37,"Horáková Nela","KRNJ",2,null,null,null,2,null,null,null,null,null,null,null,null,null,null,null,null,0,0,0]
[null,38,"Vrábelová Markéta","SPTRU",1,null,null,1,null,null,null,null,null,null,null,null,null,null,null,null,null,0,0,0]
[null,39,"Plochová Tereza",null,1,null,1,null,null,null,null,null,null,null,null,null,null,null,null,null,null,0,0,0]
[null,40,"Hubová Štěpánka","KRNJ",1,null,null,null,1,null,null,null,null,null,null,null,null,null,null,null,null,0,0,0]
[null,41,"Havránek Jakub",null,1,null,null,null,null,1,null,null,null,null,null,null,null,null,null,null,null,0,0,0]
[null,42,null,null,0,null,null,null,null,null,null,null,null,null,null,null,null,null,null,null,null,0,0,0]
[null,43,null,null,0,null,null,null,null,null,null,null,null,null,null,null,null,null,null,null,null,0,0,0]
[null,44,null,null,0,null,null,null,null,null,null,null,null,null,null,null,null,null,null,null,null,0,0,0]
[null,45,null,null,0,null,null,null,null,null,null,null,null,null,null,null,null,null,null,null,null,0,0,0]

{"sheet":"A2","index":6,"n_rows":23,"n_cols":24,"rows_kept":23,"cut":false,"hidden":false,"merged":[[2,2,2,4]]}
[null,null,"Počet postupujících",3,{"$f":"LARGE(E4:E23,D1)","v":2}]
[null,null,null,null,"Ʃ best 3","Mem.Diviše","N.M.","DK Vánoční"]
[null,null,"A2"]
[null,1,"Březnová Michaela","KKPDY",{"$f":"SUM(LARGE(F4:X4,1)+LARGE(F4:X4,2)+LARGE(F4:X4,3))","v":22},7,8,7,null,null,null,null,null,null,null,null,null,null,null,null,null,0,0,0]
[null,2,"Vojtěchová Lucie","SPTRU",13,4,5,4,null,null,null,null,null,null,null,null,null,null,null,null,null,0,0,0]
[null,3,"Minaříková Anna","TJSNM",2,null,2,null,null,null,null,null,null,null,null,null,null,null,null,null,null,0,0,0]
[null,null,null,null,0,null,null,null,null,null,null,null,null,null,null,null,null,null,null,null,null,0,0,0]
[null,null,null,null,0,null,null,null,null,null,null,null,null,null,null,null,null,null,null,null,null,0,0,0]
[null,null,null,null,0,null,null,null,null,null,null,null,null,null,null,null,null,null,null,null,null,0,0,0]
[null,null,null,null,0,null,null,null,null,null,null,null,null,null,null,null,null,null,null,null,null,0,0,0]
[null,null,null,null,0,null,null,null,null,null,null,null,null,null,null,null,null,null,null,null,null,0,0,0]
[null,null,null,null,0,null,null,null,null,null,null,null,null,null,null,null,null,null,null,null,null,0,0,0]
[null,null,null,null,0,null,null,null,null,null,null,null,null,null,null,null,null,null,null,null,null,0,0,0]
[null,null,null,null,0,null,null,null,null,null,null,null,null,null,null,null,null,null,null,null,null,0,0,0]
[null,null,null,null,0,null,null,null,null,null,null,null,null,null,null,null,null,null,null,null,null,0,0,0]
[null,null,null,null,0,null,null,null,null,null,null,null,null,null,null,null,null,null,null,null,null,0,0,0]
[null,null,null,null,0,null,null,null,null,null,null,null,null,null,null,null,null,null,null,null,null,0,0,0]
[null,null,null,null,0,null,null,null,null,null,null,null,null,null,null,null,null,null,null,null,null,0,0,0]
[null,null,null,null,0,null,null,null,null,null,null,null,null,null,null,null,null,null,null,null,null,0,0,0]
[null,null,null,null,0,null,null,null,null,null,null,null,null,null,null,null,null,null,null,null,null,0,0,0]
[null,null,null,null,0,null,null,null,null,null,null,null,null,null,null,null,null,null,null,null,null,0,0,0]
[null,null,null,null,0,null,null,null,null,null,null,null,null,null,null,null,null,null,null,null,null,0,0,0]
[null,null,null,null,0,null,null,null,null,null,null,null,null,null,null,null,null,null,null,null,null,0,0,0]